bitfinex/quotes_SOLUSD_20251001
["timestamp","ask_amount","ask_price","bid_price","bid_amount"]
[1759309358336,18.80543657,216.84,216.78,38.8]
[1759309358541,3.38450318,216.83,216.78,38.8]
[1759309358734,3.38450318,216.82,216.78,38.8]
[1759309358930,3.38450318,216.81,216.78,38.8]
[1759309359235,3.38450318,216.8,216.78,38.8]
[1759309359440,13.59559401,216.83,216.75,35.94]
[1759309359441,3.38450318,216.79,216.75,35.94]
[1759309359648,0.72,216.78,216.75,35.94]
[1759309359960,0.72,216.77,216.7,0.2]
[1759309360148,0.72,216.77,216.71,2.66450318]
[1759309360550,16.14540086,216.78,216.7,0.2]
[1759309360743,16.86540086,216.78,216.72,2.66450318]
[1759309361061,16.86540086,216.78,216.71,38.78]
[1759309361237,19.52990404,216.78,216.71,38.78]
[1759309361432,2.66450318,216.77,216.71,38.78]
[1759309361663,0.72,216.76,216.71,38.78]
[1759309361844,0.72,216.75,216.71,38.78]
[1759309362161,16.14838054,216.74,216.71,38.78]
[1759309365470,0.72,216.73,216.71,38.78]
[1759309365763,0.72,216.73,216.7,0.2]
[1759309366058,5.3342488,216.72,216.71,38.7]
[1759309366368,21.59434599,216.72,216.7,0.2]
[1759309366562,18.92984281,216.72,216.71,38.7]
[1759309366734,18.20984281,216.72,216.71,38.7]
[1759309366931,18.20984281,216.72,216.7,1e-08]
[1759309366932,13.59559401,216.71,216.7,1e-08]
[1759309367133,35.39991715,216.71,216.7,1e-08]
[1759309367643,38.06442033,216.71,216.7,1e-08]
[1759309368041,42.67888205,216.71,216.7,1e-08]
[1759309368671,13.59559401,216.66,216.64,0.2]
[1759309368852,13.59559401,216.65,216.64,0.2]
[1759309369052,14.31559401,216.65,216.64,0.2]
[1759309369256,16.98009719,216.65,216.64,0.2]
[1759309369456,17.26442033,216.65,216.64,1e-08]
[1759309369856,13.59559401,216.65,216.64,1e-08]
[1759309370065,13.59559401,216.65,216.64,32.24000001]
[1759309370261,18.21133368,216.65,216.64,32.24000001]
[1759309370874,18.93133368,216.65,216.64,32.24000001]
[1759309371146,18.21133368,216.65,216.64,32.24000001]
[1759309371853,18.93133368,216.65,216.64,32.24000001]
[1759309372955,18.21133368,216.65,216.64,32.24000001]
[1759309373160,34.67991715,216.64,216.57,0.2]
[1759309373470,4.30432586,216.58,216.54,38.62]
[1759309373670,4.02000272,216.55,216.51,0.2]
[1759309373975,13.59559401,216.56,216.51,0.2]
[1759309374271,13.59559401,216.55,216.52,38.6]
[1759309374573,17.61559673,216.53,216.51,0.2]
[1759309374750,17.89991987,216.52,216.51,1e-08]
[1759309374951,18.61991987,216.52,216.51,1e-08]
[1759309376379,23.23843086,216.52,216.51,1e-08]
[1759309377377,34.39559401,216.49,216.48,1e-08]
[1759309377563,13.59559401,216.48,216.38,0.4]
[1759309377762,17.61559673,216.45,216.38,0.4]
[1759309377977,4.02000272,216.44,216.36,4.22000272]
[1759309378668,4.02000272,216.44,216.37,4.02000272]
[1759309378669,16.17151041,216.43,216.37,4.02000272]
[1759309379053,16.17151041,216.43,216.38,38.56]
[1759309379379,13.59559401,216.42,216.38,38.56]
[1759309380655,16.17300493,216.41,216.38,38.56]
[1759309380871,17.61559673,216.4,216.38,38.56]
[1759309381082,4.02000272,216.34,216.33,0.2]
[1759309381263,13.87991715,216.38,216.33,0.2]
[1759309381456,16.17300493,216.41,216.35,4.02000272]
[1759309381457,13.87991715,216.4,216.35,4.02000272]
[1759309381765,13.59559401,216.4,216.35,4.02000272]
[1759309382150,13.59559401,216.4,216.33,0.2]
[1759309382373,13.59559401,216.4,216.36,4.02000272]
[1759309382675,4.62038665,216.44,216.37,38.92]
[1759309382875,4.62038665,216.44,216.38,4.02000272]
[1759309383272,18.2155536,216.46,216.37,38.92]
[1759309383467,29.76503156,216.46,216.39,4.02000272]
[1759309384285,13.59559401,216.46,216.39,4.02000272]
[1759309384465,13.59559401,216.46,216.37,38.52]
[1759309384466,13.53516712,216.48,216.45,4.02000272]
[1759309384799,4.61937491,216.48,216.46,38.5]
[1759309384969,4.02000272,216.54,216.46,38.9]
[1759309385162,4.02000272,216.54,216.47,4.02000272]
[1759309385462,0.72,216.55,216.47,4.02000272]
[1759309385663,4.02000272,216.54,216.47,4.02000272]
[1759309386166,13.59559401,216.53,216.47,4.02000272]
[1759309386467,4.74000272,216.52,216.46,38.5]
[1759309386684,13.59559401,216.5,216.46,38.5]
[1759309388567,4.61895772,216.5,216.46,38.5]
[1759309388891,4.61895772,216.5,216.48,4.02000272]
[1759309389199,13.59559401,216.55,216.48,4.02000272]
[1759309389370,13.59559401,216.56,216.49,4.02000272]
[1759309389789,17.61559673,216.56,216.48,4.42000272]
[1759309390099,13.59559401,216.56,216.5,4.02000272]
[1759309390311,4.6174447,216.57,216.53,4.02000272]
[1759309390496,18.39232857,216.6,216.54,42.86000272]
[1759309390497,16.15977394,216.59,216.54,42.86000272]
[1759309390679,16.15977394,216.59,216.56,4.02000272]
[1759309390680,4.61722812,216.59,216.56,4.02000272]
[1759309391079,4.61722812,216.59,216.52,0.4]
[1759309391080,16.15977394,216.59,216.52,0.4]
[1759309391278,16.15977394,216.59,216.54,4.02000272]
[1759309391577,6.85016602,216.6,216.55,42.84000272]
[1759309391782,11.46698948,216.6,216.56,42.44000272]
[1759309391975,23.0090024,216.6,216.56,38.42]
[1759309392182,14.31559401,216.59,216.56,38.42]
[1759309392397,0.72,216.58,216.56,38.42]
[1759309392680,4.6174447,216.57,216.56,38.42]
[1759309393089,13.59559401,216.56,216.5,4.02000272]
[1759309393385,13.59559401,216.56,216.51,38.4]
[1759309394483,16.16105646,216.57,216.51,38.4]
[1759309394677,4.02000272,216.59,216.54,4.02000272]
[1759309394678,4.6172315,216.58,216.54,4.02000272]
[1759309394882,16.16057127,216.58,216.52,0.4]
[1759309395078,16.16057127,216.58,216.54,4.02000272]
[1759309395396,4.6172315,216.58,216.53,4.02000272]
[1759309395608,4.6172315,216.58,216.53,4.42000272]
[1759309395997,4.6172315,216.58,216.53,4.02000272]
[1759309396198,16.16031026,216.58,216.53,4.02000272]
[1759309396399,4.6172315,216.58,216.53,4.02000272]
[1759309396909,6.85016602,216.6,216.53,4.02000272]
[1759309396910,16.15987028,216.59,216.53,4.02000272]
[1759309397114,16.15987028,216.59,216.51,38.4]
[1759309397319,16.15987028,216.59,216.53,4.02000272]
[1759309397517,16.15987028,216.59,216.54,4.02000272]
[1759309397818,4.61701832,216.59,216.56,4.02000272]
[1759309398003,4.61701832,216.59,216.55,4.02000272]
[1759309398313,4.6166864,216.61,216.56,4.02000272]
[1759309398506,16.15816647,216.61,216.56,4.02000272]
[1759309398818,16.87816647,216.61,216.56,4.02000272]
[1759309399620,11.54148007,216.61,216.56,4.02000272]
[1759309399986,12.25148007,216.61,216.56,4.02000272]
[1759309400693,23.07595268,216.68,216.54,20.8]
[1759309400694,0.71,216.69,216.6,4.02000272]
[1759309401017,13.59559401,216.68,216.67,4.02000272]
[1759309401186,13.59559401,216.68,216.6,0.4]
[1759309401385,0.71,216.69,216.61,38.3]
[1759309401386,4.73000272,216.67,216.61,38.3]
[1759309401619,13.59559401,216.65,216.61,38.3]
[1759309401821,13.59559401,216.63,216.62,38.28]
[1759309402581,14.30559401,216.63,216.62,38.28]
[1759309402787,14.30559401,216.63,216.54,36.02]
[1759309403116,13.59559401,216.57,216.47,0.4]
[1759309403293,13.59559401,216.59,216.5,0.4]
[1759309403491,16.15732619,216.62,216.56,4.02000272]
[1759309403716,13.59559401,216.61,216.57,42.28000272]
[1759309403909,13.59559401,216.61,216.58,4.02000272]
[1759309404106,17.61559673,216.59,216.47,36.02]
[1759309404413,17.61559673,216.57,216.49,4.02000272]
[1759309404582,13.59559401,216.55,216.49,4.02000272]
[1759309404787,13.59559401,216.55,216.47,36.02]
[1759309404788,13.59559401,216.55,216.5,4.02000272]
[1759309404989,0.69,216.54,216.5,4.02000272]
[1759309405216,17.61559673,216.56,216.48,4.02000272]
[1759309405415,0.69,216.53,216.38,6.86084746]
[1759309405729,13.59559401,216.4,216.33,0.2]
[1759309406017,0.28432314,216.39,216.33,0.2]
[1759309406318,13.59559401,216.4,216.33,4.22000272]
[1759309406489,13.59559401,216.4,216.33,0.2]
[1759309406686,13.59559401,216.4,216.34,28.30000272]
[1759309406987,13.59559401,216.4,216.34,24.28]
[1759309407193,13.59559401,216.4,216.35,4.02000272]
[1759309407393,0.69,216.39,216.35,4.02000272]
[1759309407601,4.62149921,216.38,216.34,24.28]
[1759309407801,16.17524724,216.38,216.34,24.28]
[1759309408009,14.28559401,216.37,216.33,0.2]
[1759309408215,14.28559401,216.37,216.34,38.22]
[1759309408490,13.59559401,216.37,216.34,38.22]
[1759309408687,13.59559401,216.39,216.35,4.02000272]
[1759309408965,14.28559401,216.39,216.35,4.02000272]
[1759309409216,14.28559401,216.39,216.36,4.02000272]
[1759309409403,14.28559401,216.39,216.35,4.02000272]
[1759309409597,4.62149921,216.38,216.35,4.02000272]
[1759309409804,4.6211463,216.4,216.37,4.02000272]
[1759309410111,0.69,216.39,216.36,4.02000272]
[1759309411311,13.59559401,216.47,216.38,4.02000272]
[1759309411616,43.08189456,216.62,216.37,20.8]
[1759309411617,13.59559401,216.43,216.37,20.8]
[1759309411814,13.59559401,216.43,216.34,38.62]
[1759309411815,13.59559401,216.43,216.4,4.02000272]
[1759309411988,13.59559401,216.43,216.41,42.22000272]
[1759309412191,4.62021807,216.44,216.41,42.22000272]
[1759309412516,5.31021807,216.44,216.41,42.22000272]
[1759309412729,4.62021807,216.44,216.42,4.02000272]
[1759309412937,14.28559401,216.43,216.41,38.2]
[1759309413104,13.59559401,216.43,216.41,38.2]
[1759309413304,14.28559401,216.42,216.41,38.2]
[1759309413506,14.28559401,216.42,216.35,20.8]
[1759309413507,13.59559401,216.41,216.33,0.2]
[1759309413716,17.61559673,216.39,216.34,38.18]
[1759309413934,13.59559401,216.37,216.34,38.18]
[1759309414202,14.28559401,216.37,216.34,38.18]
[1759309414614,13.59559401,216.39,216.36,4.02000272]
[1759309415127,13.59559401,216.39,216.34,38.18]
[1759309415314,13.59559401,216.39,216.35,4.02000272]
[1759309415625,4.62149921,216.38,216.35,4.02000272]
[1759309415932,4.62149921,216.38,216.36,4.02000272]
[1759309416233,16.17524724,216.38,216.35,4.02000272]
[1759309416405,14.28559401,216.37,216.34,38.18]
[1759309416926,0.69,216.36,216.34,38.18]
[1759309417321,0.69,216.35,216.34,38.18]
[1759309417726,5.31214005,216.35,216.34,38.18]
[1759309418006,43.99819314,216.35,216.24,0.4]
[1759309418337,43.99819314,216.35,216.27,4.02000272]
[1759309418738,13.59559401,216.33,216.27,4.02000272]
[1759309418943,13.59559401,216.33,216.24,0.4]
[1759309419104,13.59559401,216.33,216.26,20.8]
[1759309419440,0.28432314,216.32,216.26,20.8]
[1759309419739,0.28432314,216.32,216.25,38.14]
[1759309419740,13.59559401,216.29,216.25,42.16000272]
[1759309419942,14.28559401,216.29,216.25,42.16000272]
[1759309420311,14.28559401,216.29,216.25,38.14]
[1759309420312,13.59559401,216.27,216.25,38.14]
[1759309420543,13.59559401,216.29,216.25,38.14]
[1759309420842,13.59559401,216.29,216.25,42.16000272]
[1759309421044,13.59559401,216.29,216.2,0.4]
[1759309421045,13.87991715,216.29,216.2,0.4]
[1759309421247,0.69,216.28,216.21,38.12]
[1759309421411,13.87991715,216.29,216.22,0.4]
[1759309421412,13.59559401,216.29,216.22,0.4]
[1759309421616,0.69,216.35,216.28,4.02000272]
[1759309421918,13.59559401,216.34,216.33,4.02000272]
[1759309422129,13.59559401,216.37,216.29,38.12]
[1759309422318,13.59559401,216.37,216.35,4.02000272]
[1759309422514,16.17449974,216.39,216.36,38.12]
[1759309422515,4.62128564,216.39,216.36,38.12]
[1759309422718,4.62128564,216.39,216.37,4.02000272]
[1759309422930,16.86449974,216.39,216.36,38.12]
[1759309423243,14.28559401,216.38,216.36,38.12]
[1759309423623,13.59559401,216.36,216.32,4.02000272]
[1759309423968,14.28559401,216.36,216.33,38.1]
[1759309424133,13.59559401,216.37,216.33,38.1]
[1759309424517,13.59559401,216.35,216.33,38.1]
[1759309424832,14.28559401,216.34,216.33,38.1]
[1759309425031,0.69,216.34,216.33,38.08]
[1759309425615,0.69,216.34,216.23,20.8]
[1759309425616,16.17973372,216.32,216.23,20.8]
[1759309425822,16.17973372,216.32,216.22,21.2]
[1759309426055,16.17973372,216.32,216.26,4.02000272]
[1759309426211,16.17973372,216.32,216.22,21.2]
[1759309426411,13.59559401,216.3,216.25,4.02000272]
[1759309426640,13.59559401,216.3,216.22,0.4]
[1759309426940,13.59559401,216.3,216.29,4.02000272]
[1759309427152,16.17973372,216.32,216.29,4.02000272]
[1759309427153,16.17973372,216.32,216.29,42.10000272]
[1759309427355,13.59559401,216.31,216.29,42.10000272]
[1759309427950,4.6232085,216.3,216.29,42.10000272]
[1759309428245,0.83216157,216.34,216.29,42.10000272]
[1759309428246,13.59559401,216.33,216.29,42.10000272]
[1759309428418,13.59559401,216.33,216.32,4.02000272]
[1759309429023,13.59559401,216.33,216.29,38.08]
[1759309429223,13.59559401,216.33,216.3,38.06]
[1759309429419,14.28559401,216.33,216.31,38.06]
[1759309429640,13.59559401,216.33,216.32,38.06]
[1759309429937,11.55464017,216.37,216.32,42.08000272]
[1759309430142,11.55464017,216.37,216.33,4.02000272]
[1759309430143,13.59559401,216.36,216.33,4.02000272]
[1759309430343,11.5516961,216.42,216.34,4.02000272]
[1759309430649,16.85852219,216.47,216.35,0.4]
[1759309430833,0.69,216.5,216.45,4.02000272]
[1759309431024,0.69,216.5,216.32,42.68266232]
[1759309431025,0.69,216.49,216.46,38.04]
[1759309431228,14.28559401,216.48,216.47,38.04]
[1759309431935,22.9249611,216.48,216.47,38.04]
[1759309432126,23.20928424,216.48,216.47,38.04]
[1759309432553,13.87991715,216.47,216.37,20.8]
[1759309432723,13.59559401,216.41,216.35,4.02000272]
[1759309432923,13.59559401,216.42,216.36,4.02000272]
[1759309433261,13.59559401,216.39,216.33,4.02000272]
[1759309433442,5.02432586,216.38,216.28,0.4]
[1759309433647,0.28432314,216.41,216.33,4.02000272]
[1759309433648,13.59559401,216.37,216.33,4.02000272]
[1759309433966,13.59559401,216.4,216.33,0.4]
[1759309434129,4.62128564,216.39,216.37,4.02000272]
[1759309434457,4.62128564,216.39,216.38,38.0]
[1759309434658,29.77009375,216.39,216.38,38.0]
[1759309435672,0.72,216.45,216.38,38.0]
[1759309435974,13.59559401,216.44,216.4,2.68171724]
[1759309436139,13.59559401,216.44,216.38,38.0]
[1759309436140,0.72,216.44,216.38,38.0]
[1759309436339,0.72,216.44,216.39,2.68171724]
[1759309436541,0.72,216.44,216.38,38.0]
[1759309436740,16.89076325,216.44,216.39,2.68171724]
[1759309437158,13.59559401,216.42,216.39,2.68171724]
[1759309437843,13.59559401,216.42,216.4,2.68171724]
[1759309438452,13.59559401,216.42,216.38,38.0]
[1759309438656,13.59559401,216.42,216.39,2.68171724]
[1759309439036,4.62085855,216.41,216.38,38.0]
[1759309439571,4.62085855,216.41,216.4,2.68171724]
[1759309439778,13.59559401,216.43,216.4,3.08171724]
[1759309440063,13.59559401,216.44,216.38,38.0]
[1759309440279,13.59559401,216.44,216.4,2.68171724]
[1759309440564,13.59559401,216.44,216.38,38.0]
[1759309440565,14.31559401,216.44,216.38,38.0]
[1759309440769,14.31559401,216.44,216.41,2.68171724]
[1759309440941,14.31559401,216.44,216.38,38.0]
[1759309440942,4.62018298,216.45,216.43,2.68171724]
[1759309441150,11.54965547,216.46,216.44,40.62171724]
[1759309441452,11.54965547,216.46,216.44,37.94]
[1759309441453,14.31559401,216.45,216.44,37.94]
[1759309441651,14.31559401,216.45,216.4,2.68171724]
[1759309441855,0.72,216.44,216.41,37.92]
[1759309442170,4.61957777,216.47,216.43,2.68171724]
[1759309442373,0.72,216.52,216.46,2.68171724]
[1759309442550,0.72,216.52,216.47,37.92]
[1759309442551,29.76112908,216.51,216.47,37.92]
[1759309442742,29.76112908,216.51,216.41,20.8]
[1759309442743,3.40171724,216.5,216.48,37.92]
[1759309442948,16.27731125,216.49,216.42,23.48171724]
[1759309443181,16.27731125,216.47,216.43,37.9]
[1759309443346,3.40171724,216.46,216.43,37.9]
[1759309443545,13.59559401,216.43,216.39,36.04]
[1759309443841,13.59559401,216.41,216.4,2.68171724]
[1759309444155,13.59559401,216.44,216.39,36.04]
[1759309444366,13.59559401,216.42,216.4,2.68171724]
[1759309444561,0.72,216.44,216.4,2.68171724]
[1759309444750,13.59559401,216.42,216.41,37.9]
[1759309444953,0.28432314,216.44,216.41,37.9]
[1759309445145,18.21602555,216.43,216.42,2.68171724]
[1759309445539,13.59559401,216.42,216.41,37.9]
[1759309446061,13.59559401,216.42,216.41,40.58171724]
[1759309446266,18.21602555,216.43,216.41,40.58171724]
[1759309446502,13.59559401,216.42,216.41,40.58171724]
[1759309446670,13.59559401,216.45,216.41,40.98171724]
[1759309446882,13.59559401,216.45,216.41,37.9]
[1759309447043,13.59559401,216.45,216.42,11.5516126]
[1759309447044,13.19559401,216.45,216.42,11.5516126]
[1759309447245,0.72,216.56,216.45,20.8]
[1759309447445,0.72,216.56,216.54,2.68171724]
[1759309447672,2.68171724,216.61,216.55,37.86]
[1759309447877,39.23741738,216.63,216.56,37.86]
[1759309448055,62.71913462,216.63,216.56,37.86]
[1759309448253,1.00432314,216.62,216.56,37.86]
[1759309448573,0.72,216.61,216.45,20.8]
[1759309448793,3.40171724,216.6,216.45,20.8]
[1759309448940,2.68171724,216.56,216.42,20.8]
[1759309449146,0.14216157,216.53,216.42,20.8]
[1759309449374,0.28432314,216.5,216.39,36.04]
[1759309449546,0.28432314,216.5,216.46,2.68171724]
[1759309449746,13.59559401,216.48,216.47,37.84]
[1759309450056,14.31559401,216.48,216.47,37.84]
[1759309450286,13.87991715,216.5,216.47,37.84]
[1759309450464,0.72,216.49,216.47,40.52171724]
[1759309450665,13.87991715,216.5,216.47,40.52171724]
[1759309450961,13.59559401,216.48,216.45,2.68171724]
[1759309451164,0.28432314,216.45,216.39,36.04]
[1759309451477,13.59559401,216.43,216.4,2.68171724]
[1759309451791,13.59559401,216.41,216.39,38.72171724]
[1759309452088,0.72,216.42,216.39,38.72171724]
[1759309452089,14.31559401,216.4,216.39,38.72171724]
[1759309452257,14.59991715,216.4,216.39,73.86]
[1759309453362,19.22098923,216.4,216.39,73.86]
[1759309454687,13.87991715,216.39,216.33,2.68171724]
[1759309454882,14.59991715,216.39,216.25,36.04]
[1759309455056,0.28432314,216.36,216.3,2.68171724]
[1759309455261,0.72,216.35,216.3,2.68171724]
[1759309455490,14.31559401,216.34,216.3,2.68171724]
[1759309455677,13.59559401,216.34,216.3,2.68171724]
[1759309455863,13.59559401,216.32,216.3,2.68171724]
[1759309456065,14.31559401,216.32,216.31,37.78]
[1759309456357,13.87991715,216.34,216.31,37.78]
[1759309456585,13.59559401,216.34,216.32,2.68171724]
[1759309456970,14.31559401,216.34,216.32,2.68171724]
[1759309457478,14.31559401,216.34,216.31,37.78]
[1759309457479,13.59559401,216.32,216.31,40.46171724]
[1759309457687,13.59559401,216.32,216.31,37.78]
[1759309458279,13.59559401,216.32,216.31,40.46171724]
[1759309458475,4.62235539,216.34,216.31,40.46171724]
[1759309458682,18.2178185,216.35,216.33,2.68171724]
[1759309458884,0.72,216.34,216.31,40.46171724]
[1759309459067,13.59559401,216.32,216.31,40.46171724]
[1759309459265,13.59559401,216.34,216.31,40.46171724]
[1759309459597,4.62278106,216.32,216.31,40.46171724]
[1759309459980,4.62278106,216.32,216.31,37.78]
[1759309459981,5.30278106,216.32,216.31,37.78]
[1759309460200,13.59559401,216.31,216.29,2.68171724]
[1759309460499,14.27559401,216.3,216.29,2.68171724]
[1759309460700,14.27559401,216.3,216.27,2.68171724]
[1759309460901,14.27559401,216.3,216.25,36.04]
[1759309461067,13.59559401,216.28,216.27,2.68171724]
[1759309461399,16.18122976,216.3,216.25,36.04]
[1759309461604,14.55991715,216.29,216.27,2.68171724]
[1759309461898,13.59559401,216.29,216.27,2.68171724]
[1759309462566,0.68,216.37,216.27,2.68171724]
[1759309462763,81.71621924,217.7,216.35,2.68171724]
[1759309462764,13.59559401,216.38,216.35,2.68171724]
[1759309462963,13.59559401,216.38,216.37,2.68171724]
[1759309463198,14.27559401,216.38,216.36,37.72]
[1759309463394,13.59559401,216.41,216.37,2.68171724]
[1759309463572,13.59559401,216.39,216.37,2.68171724]
[1759309463774,14.29559401,216.39,216.37,2.68171724]
[1759309463969,0.7,216.38,216.37,2.68171724]
[1759309464166,0.7,216.38,216.25,47.60069364]
[1759309464167,0.14216157,216.38,216.25,36.04]
[1759309464390,36.97398169,216.4,216.25,36.04]
[1759309464391,0.28432314,216.34,216.26,37.72]
[1759309464589,13.59559401,216.33,216.28,2.68171724]
[1759309464894,0.7,216.33,216.29,2.68171724]
[1759309465069,0.7,216.33,216.3,37.72]
[1759309465397,0.28432314,216.35,216.31,2.68171724]
[1759309465577,4.62225411,216.35,216.33,23.48171724]
[1759309465765,18.21784812,216.35,216.34,37.7]
[1759309465967,13.59559401,216.34,216.33,2.68171724]
[1759309466191,13.59559401,216.34,216.33,40.38171724]
[1759309466395,4.62225411,216.35,216.33,40.38171724]
[1759309466577,4.62225411,216.35,216.34,2.68171724]
[1759309467093,4.62225411,216.35,216.28,20.8]
[1759309467400,13.59559401,216.34,216.31,2.68171724]
[1759309467601,18.21816138,216.33,216.32,2.68171724]
[1759309467772,18.21816138,216.33,216.32,40.36171724]
[1759309469493,18.21816138,216.33,216.32,37.68]
[1759309469701,18.91816138,216.33,216.32,37.68]
[1759309470179,5.32256737,216.33,216.32,37.68]
[1759309470382,13.59559401,216.32,216.25,56.84]
[1759309470580,13.59559401,216.32,216.3,2.68171724]
[1759309470896,13.59559401,216.32,216.31,37.66]
[1759309471195,13.59559401,216.32,216.31,2.68171724]
[1759309471394,0.28432314,216.31,216.3,37.66]
[1759309471566,0.28432314,216.29,216.25,2.68171724]
[1759309471771,0.28432314,216.29,216.24,2.68171724]
[1759309471772,0.7,216.28,216.24,2.68171724]
[1759309471968,0.28432314,216.29,216.14,0.2]
[1759309471969,13.59559401,216.26,216.14,0.2]
[1759309472175,0.7,216.25,216.14,0.2]
[1759309472483,3.38171724,216.25,216.14,21.0]
[1759309472684,0.7,216.25,216.19,2.68171724]
[1759309472887,0.7,216.25,216.2,37.64]
[1759309473090,13.59559401,216.23,216.2,37.64]
[1759309473285,14.29559401,216.23,216.2,37.64]
[1759309473481,2.68171724,216.26,216.2,37.64]
[1759309473800,4.6244913,216.24,216.2,37.64]
[1759309473976,18.22008531,216.24,216.23,2.68171724]
[1759309474388,18.22008531,216.24,216.2,37.64]
[1759309474704,18.22008531,216.24,216.22,2.68171724]
[1759309474899,29.78131357,216.24,216.22,2.68171724]
[1759309475279,13.59559401,216.23,216.2,37.64]
[1759309475485,14.29559401,216.23,216.2,37.64]
[1759309475698,16.18571956,216.24,216.2,37.64]
[1759309475699,13.59559401,216.21,216.2,37.64]
[1759309475995,13.59559401,216.21,216.2,40.32171724]
[1759309476318,13.59559401,216.21,216.2,37.64]
[1759309476516,13.59559401,216.21,216.2,40.32171724]
[1759309476981,13.59559401,216.21,216.2,37.64]
[1759309477180,14.29559401,216.21,216.2,37.64]
[1759309477408,17.26163439,216.21,216.15,2.68171724]
[1759309477706,16.18871415,216.2,216.15,2.68171724]
[1759309478078,13.59559401,216.15,216.14,0.2]
[1759309478478,0.98432314,216.15,216.14,37.6]
[1759309478987,0.98432314,216.15,216.13,1e-08]
[1759309479196,14.29559401,216.14,216.13,1e-08]
[1759309479409,17.26163439,216.14,216.13,1e-08]
[1759309479714,21.88826527,216.14,216.13,1e-08]
[1759309480290,21.88826527,216.14,216.13,36.30000001]
[1759309480497,0.28432314,216.12,216.09,0.2]
[1759309480685,0.14216157,216.09,215.97,36.26]
[1759309480996,13.59559401,216.07,215.97,36.26]
[1759309481193,0.28432314,216.06,215.97,36.26]
[1759309481407,0.28432314,216.04,215.9,36.28]
[1759309481602,2.96604038,216.04,215.97,2.68171724]
[1759309481911,2.96604038,216.04,215.9,36.28]
[1759309481912,16.20295356,216.01,215.9,36.28]
[1759309482088,14.29559401,216.0,215.95,2.68171724]
[1759309482287,16.97731125,216.0,215.93,2.68171724]
[1759309482508,13.59559401,215.98,215.91,37.58]
[1759309483011,13.59559401,215.98,215.93,2.68171724]
[1759309483222,0.7,215.98,215.94,2.68171724]
[1759309483601,13.59559401,216.0,215.95,2.68171724]
[1759309483922,13.59559401,216.03,215.96,20.8]
[1759309484086,13.59559401,216.03,215.97,40.26171724]
[1759309484417,13.59559401,216.01,215.97,37.58]
[1759309484595,14.29559401,216.01,215.97,37.58]
[1759309484799,13.59559401,216.03,215.98,2.68171724]
[1759309484998,14.29559401,216.03,215.98,2.68171724]
[1759309485322,0.7,216.03,215.99,2.68171724]
[1759309485682,4.62898671,216.03,216.0,2.68171724]
[1759309485887,4.62898671,216.03,216.01,2.68171724]
[1759309486504,4.62898671,216.03,215.97,37.58]
[1759309486505,13.59559401,216.06,216.02,2.68171724]
[1759309486715,13.59559401,216.04,216.03,37.56]
[1759309487015,14.57991715,216.04,216.03,37.56]
[1759309487604,13.59559401,216.05,216.03,37.56]
[1759309487829,4.62877244,216.04,216.03,37.56]
[1759309488027,18.22436645,216.04,216.03,37.56]
[1759309488200,13.59559401,216.04,216.03,37.56]
[1759309488528,13.59559401,216.04,216.03,40.24171724]
[1759309488825,33.38128594,216.18,216.03,40.24171724]
[1759309489037,33.38128594,216.18,216.06,2.68171724]
[1759309489038,13.59559401,216.11,216.06,2.68171724]
[1759309489330,13.59559401,216.07,216.03,37.56]
[1759309489525,13.59559401,216.05,216.03,37.56]
[1759309489706,4.62877244,216.04,216.03,37.56]
[1759309489914,18.22436645,216.04,216.03,37.56]
[1759309490106,18.22436645,216.04,216.03,40.24171724]
[1759309491713,18.22436645,216.04,216.03,37.56]
[1759309492033,13.59559401,216.03,216.0,2.68171724]
[1759309492208,13.59559401,216.03,215.99,2.68171724]
[1759309492520,16.20070356,216.04,215.95,2.68171724]
[1759309492521,13.59559401,216.01,215.95,2.68171724]
[1759309492724,13.59559401,216.01,215.96,2.68171724]
[1759309492725,14.29559401,216.01,215.96,2.68171724]
[1759309492900,13.59559401,215.99,215.91,0.2]
[1759309493225,39.3445658,216.04,215.95,2.68171724]
[1759309493226,16.27731125,216.02,215.95,2.68171724]
[1759309493395,13.59559401,216.02,215.97,2.68171724]
[1759309493594,0.7,216.03,215.98,40.20171724]
[1759309493800,4.62920099,216.02,216.0,2.68171724]